{"text_format":"1","workbook":"xlsx","n_sheets":11,"sheets":["Info Sheet","Bl1","Run Log","Bl2","Setup","Bl3","Setdown","Bl4","Setup Wksht","Bl5","Job List "],"not_rendered":{"charts":0,"images":2,"macros":1,"external_links":1,"defined_names":73,"comments":0,"pivot_tables":0},"unopened":[],"bounds":{"document_bytes":16777216,"sheet_cells":100000,"rows_first":2000,"rows_last":500,"rows_between":2000,"halvings":0,"cell_chars":16384,"cell_head_chars":4096},"cells_cut":0,"cells_raw":0,"read":"whole","date_system":"1900"}

{"sheet":"Info Sheet","index":0,"n_rows":29,"n_cols":3,"rows_kept":29,"cut":false,"hidden":false,"merged":[]}
[]
[]
[]
[]
[]
[null,null,"Initial Input Sheet"]
[]
["These inputs populate the same inputs in the rest of the EXCEL pages"]
[]
[null,"Event Dates:","5/9-5/11"]
[]
[null,"Track:","MIS"]
[]
[null,"Lap Distance:",2.48]
[]
[null,"Event:","FSAE Michigan 2013"]
[]
[null,"Chassis:","FSAE-001"]
[]
[null,"Car #:",99]
[]
[null,"Drivers:","John M. Student"]
[]
[null,"2011 Pole Time:","NA"]
[]
[null,"Our Testing Best:","NA"]
[]
[]
["Copyright Kaz Technologies 2013 "]

{"sheet":"Bl1","index":1,"n_rows":0,"n_cols":0,"rows_kept":0,"cut":false,"hidden":false,"merged":[]}

{"sheet":"Run Log","index":2,"n_rows":35,"n_cols":26,"rows_kept":35,"cut":false,"hidden":false,"merged":[[29,1,29,8],[29,9,29,10],[32,9,32,10],[20,16,20,17],[4,21,5,22],[4,23,5,25],[9,1,9,8],[9,9,9,10],[21,9,21,10],[12,9,12,10],[18,1,18,8],[18,9,18,10],[6,1,6,10],[6,14,6,17]]}
[null,null,null,null,null,null,null,null,null,null,null,null,"Dates:",null,{"$f":"'Info Sheet'!C10","v":"5/9-5/11"},null,null,null,null,null,null,"Chassis #:",{"$f":"'Info Sheet'!C18","v":"FSAE-001"},null,"2011 Pole Time:","N/A"]
[null,null,null,null,null,null,null,null,null,null,null,null,"Track:",null,{"$f":"'Info Sheet'!C12","v":"MIS"},null,null,null,null,null,null,"Car #:",{"$f":"'Info Sheet'!C20","v":99},null,"Our 2012 Best:","N/A"]
[null,null,null,null,null,null,null,null,null,null,null,null,"Lap Distance:",null,{"$f":"'Info Sheet'!C14","v":2.48},null,null,null,null,null,null,"Drivers:",{"$f":"'Info Sheet'!C22","v":"John M. Student"}]
[null,null,null,null,null,null,null,null,null,null,null,null,"Event:",null,{"$f":"'Info Sheet'!C16","v":"FSAE Michigan 2013"}]
[null,null,null,null,null,null,null,null,null,null,null,null,null,null,null,null,null,null,null,null,null,"Laps and Mileage",null,"On Track"]
[null,null,null,null,null,null,null,null,null,null,null,null,null,null,"Copyright Kaz Technologies 2013 "]
["Run # \n Time of Day\nWeather","Setup",null,null,null,null,null,null,null,null,null,"Changes","Driver Comments","Data / Post Processing Comments","Tires",null,null,null,null,null,null,"Lap\nNo","Tire\nLap No","Scoring\nLap \nTime","Data Lap Time","On-Track\nComments"]
["Day 1"]
["Run 1"]
["12:03:00","Damper Settings",null,null,null,null,null,null,null,"Springs",null,"set 2 tires, 30 laps from last event",null,null,25,26,"starting cold pressures",null,null,null,null,1,31,null,"out"]
["TT 107F","C +",2,"R -",2,"C +",2,"R -",2,"F","R","full of fuel",null,null,25,26,null,null,null,null,null,2,32,null,"in"]
["AT 85F","C +",2,"R -",3,"C +",2,"R -",4,400,550,"driver = JMS","understeer T2 & T5"]
["Sunny",null,null,null,null,null,null,null,null,"ARBs"]
[null,null,null,null,null,null,null,null,null,"F","R",null,"bump in T3 upsets car"]
[null,null,null,null,null,null,null,null,null,4,4,null,null,null,32,33,"hot pressures"]
[null,null,null,null,null,null,null,null,null,null,null,null,null,null,33,33]
[]
["R2"]
["12:24:00","Damper Settings",null,null,null,null,null,null,null,"Springs",null,"add 2 clicks front compression",null,null,null,null,null,null,null,null,null,3,33,null,"out"]
[null,"C +",4,"R -",2,"C +",4,"R -",2,"F","R","300 fsprings","car is way better, great job engineers!",null,null,null,null,null,null,null,null,4,34,null,"00:01:45.986"]
[null,"C +",2,"R -",3,"C +",2,"R -",4,300,550,null,null,null,32.1,32,"tire temps",null,null,null,null,5,35,null,"in"]
[null,null,null,null,null,null,null,null,null,"ARBs",null,"-1psi RF, LR, RR",null,null,31.7,31.5,"150/175/200","200/175/150"]
[null,null,null,null,null,null,null,null,null,"F","R",null,null,null,null,null,"150/175/200","200/175/150"]
[null,null,null,null,null,null,null,null,null,4,4]
[]
[]
[]
["Day 2"]
["Run 1"]
[null,"Damper Settings",null,null,null,null,null,null,null,"Springs",null,"same tires as day 1, 35 laps total"]
[null,"C +",4,"R -",2,"C +",4,"R -",2,"F","R"]
[null,"C +",2,"R -",3,"C +",2,"R -",4,300,550]
[null,null,null,null,null,null,null,null,null,"ARBs"]
[null,null,null,null,null,null,null,null,null,"F","R"]
[null,null,null,null,null,null,null,null,null,4,4]

{"sheet":"Bl2","index":3,"n_rows":0,"n_cols":0,"rows_kept":0,"cut":false,"hidden":false,"merged":[]}

{"sheet":"Setup","index":4,"n_rows":35,"n_cols":29,"rows_kept":35,"cut":false,"hidden":false,"merged":[[5,0,5,2],[5,3,5,8],[5,10,5,12],[5,13,5,18],[5,20,5,22],[5,23,5,28],[4,13,4,18],[2,7,2,21],[4,0,4,2],[4,3,4,8],[4,10,4,12],[4,23,4,28],[4,20,4,22],[3,20,3,22],[3,23,3,28],[9,3,9,6],[9,25,9,28],[10,0,10,2],[10,8,10,12],[10,13,10,15],[10,16,10,20],[10,22,10,24],[7,0,7,6],[7,22,7,28],[8,0,8,2],[8,3,8,6],[8,8,8,10],[8,11,8,12],[8,16,8,18],[8,19,8,20],[8,22,8,24],[8,25,8,28],[10,25,10,28],[10,3,10,6],[12,22,12,24],[12,25,12,27],[15,0,15,6],[15,22,15,28],[13,8,13,15],[13,16,13,20],[11,0,11,2],[11,3,11,5],[12,13,12,15],[11,22,11,24],[11,25,11,27],[16,22,16,24],[16,25,16,28],[17,3,17,6],[17,25,17,28],[16,0,16,2],[16,3,16,6],[16,8,16,10],[16,11,16,12],[16,16,16,18],[16,19,16,20],[17,11,17,12],[17,19,17,20],[17,8,17,10],[17,16,17,18],[24,4,24,6],[24,20,24,22],[24,23,24,26],[24,27,24,28],[25,20,25,22],[25,23,25,26],[25,27,25,28],[22,20,22,28],[23,0,24,3],[23,4,23,6],[23,20,23,22],[23,23,23,26],[23,27,23,28],[23,13,23,18],[24,13,24,18],[18,25,18,27],[18,0,18,2],[18,3,18,5],[20,13,20,15],[18,22,18,24],[20,11,20,12],[20,16,20,18],[31,10,31,19],[32,0,32,9],[32,10,32,19],[31,20,32,24],[27,0,27,9],[28,0,28,9],[29,0,29,9],[30,0,30,9],[31,0,31,9],[27,10,27,19],[28,10,28,19],[29,10,29,19],[30,10,30,19],[18,8,18,12],[18,13,18,15],[18,16,18,20],[19,8,19,12],[19,13,19,15],[19,16,19,20],[12,11,12,12],[12,8,12,10],[12,16,12,18],[12,19,12,20],[20,8,20,10],[9,8,9,10],[9,11,9,12],[9,16,9,18],[9,19,9,20],[11,8,11,12],[11,13,11,15],[11,16,11,20],[20,19,20,20],[29,20,30,24],[29,25,30,27],[29,28,30,28],[23,7,23,12],[24,7,24,12],[21,8,21,15],[21,16,21,20],[27,25,27,26],[27,27,27,28],[28,25,28,26],[28,27,28,28],[27,20,28,24]]}
[]
[]
[null,null,null,null,null,null,null,"CHASSIS SETUP SHEET"]
[null,null,null,null,null,null,null,null,null,null,null,null,null,null,null,null,null,null,null,null,"Printed :",null,null,{"$f":"NOW()","v":"2013-05-07T23:04:53.340"}]
["ENGINEER",null,null,"Kaz Tech",null,null,null,null,null,null,"CIRCUIT",null,null,{"$f":"'Info Sheet'!C12","v":"MIS"},null,null,null,null,null,null,"EVENT",null,null,{"$f":"'Info Sheet'!C16","v":"FSAE Michigan 2013"}]
["CHASSIS",null,null,{"$f":"'Info Sheet'!C18","v":"FSAE-001"},null,null,null,null,null,null,"LAP DISTANCE",null,null,{"$f":"'Info Sheet'!C14","v":2.48},null,null,null,null,null,null,"DATE",null,null,{"$f":"NOW()","v":"2013-05-07T23:04:53.340"}]
[]
["LEFT FRONT",null,null,null,null,null,null,null,null,null,null,null,null,null,"FRONT SUSPENSION",null,null,null,null,null,null,null,"RIGHT FRONT"]
["TOE",null,null,null,null,null,null,null,null,null,null,"Inches",null,null,"RIDE HT",null,null,null,null,"Inches",null,null,"TOE"]
[null,"CAMBER",null,null,null,null,null,null,null,null,null,"Lbs/In",null,null,"SPRINGS",null,null,null,null,"Lbs/In",null,null,null,"CAMBER"]
["CASTER",null,null,null,null,null,"Lbs",null,null,null,null,null,null,"DAMPERS",null,null,null,null,null,null,null,null,"CASTER",null,null,null,null,null,"Lbs"]
["WEIGHT",null,null,null,null,null,"Lbs",null,null,null,null,null,null,"DAMPER SETTINGS",null,null,null,null,null,null,null,null,"WEIGHT",null,null,null,null,null,"Lbs"]
[null,null,null,null,null,null,null,null,null,null,null,"Inches",null,"PACKER GAP",null,null,null,null,null,"Inches",null,null,"CROSS WT",null,null,null,null,null,"%"]
[null,null,null,null,null,null,null,null,"FRONT ROLL BAR SETTING",null,null,null,null,null,null,null,"1/5  "]
[]
["LEFT REAR",null,null,null,null,null,null,null,null,null,null,null,null,null,"REAR SUSPENSION",null,null,null,null,null,null,null,"RIGHT REAR"]
["TOE",null,null,null,null,null,null,null,null,null,null,"Inches",null,null,"RIDE HT",null,null,null,null,"Inches",null,null,"TOE"]
[null,"CAMBER",null,null,null,null,null,null,null,null,null,"Lbs/In",null,null,"SPRINGS",null,null,null,null,"Lbs/In",null,null,null,"CAMBER"]
["WEIGHT",null,null,null,null,null,"Lbs",null,null,null,null,null,null,"DAMPERS",null,null,null,null,null,null,null,null,"WEIGHT",null,null,null,null,null,"Lbs"]
[null,null,null,null,null,null,null,null,null,null,null,null,null,"DAMPER SETTINGS"]
[null,null,null,null,null,null,null,null,null,null,null,"Inches",null,"PACKER GAP",null,null,null,null,null,"Inches"]
[null,null,null,null,null,null,null,null,"REAR ROLL BAR SETTING",null,null,null,null,null,null,null,"1/5  "]
[null,null,null,null,null,null,null,null,null,null,null,null,null,null,null,null,null,null,null,null,"SETUP BALLAST"]
["BRAKES\nFRT/REAR",null,null,null,"PADS",null,null,null,null,null,null,null,null,null,null,null,null,null,null,null,"DRIVER",null,null,185,null,null,null,"LBS"]
[null,null,null,null,"ROTORS",null,null,null,null,null,null,null,null,null,null,null,null,null,null,null,"FUEL WT",null,null,12.5,null,null,null,"LBS"]
[null,null,null,null,null,null,null,null,null,null,null,null,null,null,null,null,null,null,null,null,"FUEL VOL",null,null,2,null,null,null,"GALS"]
["NOTES:"]
[null,null,null,null,null,null,null,null,null,null,null,null,null,null,null,null,null,null,null,null,"Setup Tire Pressure",null,null,null,null,25,null,25]
[null,null,null,null,null,null,null,null,null,null,null,null,null,null,null,null,null,null,null,null,null,null,null,null,null,25,null,25]
[null,null,null,null,null,null,null,null,null,null,null,null,null,null,null,null,null,null,null,null,"Brake Bias\n(% Front)",null,null,null,null,52.5,null,null,"%"]
[]
[null,null,null,null,null,null,null,null,null,null,null,null,null,null,null,null,null,null,null,null,"Anti - Roll Bar              Adjuster Setting",null,null,null,null,"5 / 5 = Full Hard"]
[null,null,null,null,null,null,null,null,null,null,null,null,null,null,null,null,null,null,null,null,null,null,null,null,null,"1 / 5 = Full Soft"]
[]
[null,null,null,null,null,null,null,null,null,null,"Copyright Kaz Technologies 2013 "]

{"sheet":"Bl3","index":5,"n_rows":0,"n_cols":0,"rows_kept":0,"cut":false,"hidden":false,"merged":[]}

{"sheet":"Setdown","index":6,"n_rows":35,"n_cols":29,"rows_kept":35,"cut":false,"hidden":false,"merged":[[4,23,4,28],[5,0,5,2],[5,3,5,8],[5,10,5,12],[5,13,5,18],[5,20,5,22],[5,23,5,28],[2,7,2,21],[4,0,4,2],[4,3,4,8],[4,10,4,12],[4,13,4,18],[4,20,4,22],[12,25,12,27],[9,3,9,6],[9,25,9,28],[10,0,10,2],[10,8,10,12],[10,13,10,15],[10,16,10,20],[10,22,10,24],[7,0,7,6],[7,22,7,28],[8,0,8,2],[8,3,8,6],[8,8,8,10],[8,11,8,12],[8,16,8,18],[8,19,8,20],[8,22,8,24],[8,25,8,28],[12,11,12,12],[12,13,12,15],[12,16,12,18],[12,0,12,2],[12,3,12,5],[11,8,11,12],[11,13,11,15],[11,16,11,20],[12,22,12,24],[24,27,24,28],[25,20,25,22],[25,23,25,26],[25,27,25,28],[22,20,22,28],[23,0,24,3],[23,4,23,6],[23,7,23,18],[23,20,23,22],[23,23,23,26],[23,27,23,28],[21,8,21,15],[21,16,21,20],[12,19,12,20],[13,8,13,15],[13,16,13,20],[11,0,11,2],[20,8,20,10],[20,11,20,12],[20,13,20,15],[20,16,20,18],[31,0,31,18],[31,19,32,23],[31,24,31,28],[32,0,32,18],[32,24,32,28],[9,8,9,10],[9,11,9,12],[9,16,9,18],[9,19,9,20],[12,8,12,10],[27,0,27,18],[27,19,27,28],[28,0,28,18],[28,19,28,23],[28,24,28,28],[29,0,29,18],[29,19,30,23],[29,24,29,28],[30,0,30,18],[30,24,30,28],[24,4,24,6],[24,7,24,18],[24,20,24,22],[24,23,24,26],[10,3,10,6],[10,25,10,28],[17,8,17,10],[17,11,17,12],[17,16,17,18],[17,19,17,20],[19,25,19,27],[19,8,19,12],[19,13,19,15],[19,16,19,20],[19,22,19,24],[19,3,19,5],[18,8,18,12],[18,13,18,15],[18,16,18,20],[18,3,18,5],[18,22,18,24],[16,22,16,24],[16,25,16,28],[18,25,18,27],[11,3,11,5],[11,22,11,24],[11,25,11,27],[13,22,13,24],[13,25,13,27],[15,0,15,6],[15,22,15,28],[20,19,20,20],[19,0,19,2],[18,0,18,2],[17,3,17,6],[17,25,17,28],[16,0,16,2],[16,3,16,6],[16,8,16,10],[16,11,16,12],[16,16,16,18],[16,19,16,20]]}
[]
[]
[null,null,null,null,null,null,null,"CHASSIS POST SESSION SET DOWN"]
[]
["FILLED IN",null,null,"Kaz Tech",null,null,null,null,null,null,"EVENT",null,null,{"$f":"'Info Sheet'!C16","v":"FSAE Michigan 2013"},null,null,null,null,null,null,"DATE",null,null,"2013-05-05"]
["CHASSIS",null,null,{"$f":"'Info Sheet'!C18","v":"FSAE-001"},null,null,null,null,null,null,"CIRCUIT",null,null,{"$f":"'Info Sheet'!C12","v":"MIS"},null,null,null,null,null,null,"TIME",null,null,"18:19:00"]
[]
["LEFT FRONT",null,null,null,null,null,null,null,null,null,null,null,null,null,"FRONT SUSPENSION",null,null,null,null,null,null,null,"RIGHT FRONT"]
["TOE",null,null,null,null,null,null,null,null,null,null,"Inches",null,null,"RIDE HT",null,null,null,null,"Inches",null,null,"TOE"]
[null,"CAMBER",null,null,null,null,null,null,null,null,null,"Lbs/In",null,null,"SPRINGS",null,null,null,null,"Lbs/In",null,null,null,"CAMBER"]
["CASTER",null,null,null,null,null,"Lbs",null,null,null,null,null,null,"DAMPERS",null,null,null,null,null,null,null,null,"CASTER",null,null,null,null,null,"Lbs"]
["WEIGHT",null,null,null,null,null,"Lbs",null,null,null,null,null,null,"DAMPER SETTINGS",null,null,null,null,null,null,null,null,"WEIGHT",null,null,null,null,null,"Lbs"]
["WEIGHT NO BARS",null,null,null,null,null,"Lbs",null,null,null,null,"Inches",null,"PACKER GAP",null,null,null,null,null,"Inches",null,null,"WEIGHT NO BARS",null,null,null,null,null,"Lbs"]
[null,null,null,null,null,null,null,null,"FRONT ROLL BAR SETTING",null,null,null,null,null,null,null,null,null,null,null,null,null,"CROSS WT",null,null,null,null,null,"%"]
[]
["LEFT REAR",null,null,null,null,null,null,null,null,null,null,null,null,null,"REAR SUSPENSION",null,null,null,null,null,null,null,"RIGHT REAR"]
["TOE",null,null,null,null,null,null,null,null,null,null,"Inches",null,null,"RIDE HT",null,null,null,null,"Inches",null,null,"TOE"]
[null,"CAMBER",null,null,null,null,null,null,null,null,null,"Lbs/In",null,null,"SPRINGS",null,null,null,null,"Lbs/In",null,null,null,"CAMBER"]
["WEIGHT",null,null,null,null,null,"Lbs",null,null,null,null,null,null,"DAMPERS",null,null,null,null,null,null,null,null,"WEIGHT",null,null,null,null,null,"Lbs"]
["WEIGHT NO BARS",null,null,null,null,null,"Lbs",null,null,null,null,null,null,"DAMPER SETTINGS",null,null,null,null,null,null,null,null,"WEIGHT NO BARS",null,null,null,null,null,"Lbs"]
[null,null,null,null,null,null,null,null,null,null,null,"Inches",null,"PACKER GAP",null,null,null,null,null,"Inches"]
[null,null,null,null,null,null,null,null,"REAR ROLL BAR SETTING"]
[null,null,null,null,null,null,null,null,null,null,null,null,null,null,null,null,null,null,null,null,"FUEL"]
["ADDITIONAL ITEMS",null,null,null,"FRONT",null,null,null,null,null,null,null,null,null,null,null,null,null,null,null,"START",null,null,null,null,null,null,"Gals"]
[null,null,null,null,"REAR",null,null,null,null,null,null,null,null,null,null,null,null,null,null,null,"ADDED",null,null,null,null,null,null,"Gals"]
[null,null,null,null,null,null,null,null,null,null,null,null,null,null,null,null,null,null,null,null,"PUMP OUT",null,null,null,null,null,null,"Gals"]
["NOTES / DAMAGE:"]
[null,null,null,null,null,null,null,null,null,null,null,null,null,null,null,null,null,null,null," Setup Ballast"]
[null,null,null,null,null,null,null,null,null,null,null,null,null,null,null,null,null,null,null,"Driver",null,null,null,null,"185 Lbs"]
[null,null,null,null,null,null,null,null,null,null,null,null,null,null,null,null,null,null,null,"Fuel",null,null,null,null,"12.5 Lbs"]
[null,null,null,null,null,null,null,null,null,null,null,null,null,null,null,null,null,null,null,null,null,null,null,null,"2 Gal"]
[null,null,null,null,null,null,null,null,null,null,null,null,null,null,null,null,null,null,null,"Anti - Roll Bar              Adjuster Setting",null,null,null,null,"5 / 5 = Full Hard"]
[null,null,null,null,null,null,null,null,null,null,null,null,null,null,null,null,null,null,null,null,null,null,null,null,"1 / 5 = Full Soft"]
[]
[null,null,null,null,null,null,null,null,null,null,null,"Copyright Kaz Technologies 2013 "]

{"sheet":"Bl4","index":7,"n_rows":0,"n_cols":0,"rows_kept":0,"cut":false,"hidden":false,"merged":[]}

{"sheet":"Setup Wksht","index":8,"n_rows":48,"n_cols":17,"rows_kept":48,"cut":false,"hidden":false,"merged":[[3,0,3,17],[4,0,4,17],[5,0,5,1],[5,4,5,5],[5,8,5,9],[5,12,5,13],[5,16,5,17]]}
[]
[]
[]
["SETUP WORKSHEET"]
["Enter     Target      Values       On     Top     Lines"]
["Weight",null,null,null,"Ride Height",null,null,null,"Camber",null,null,null,"Toe",null,null,null,"Packer Gap"]
[]
[]
[]
[]
[]
[]
[]
[]
[]
[]
[]
[]
[]
[]
[]
[]
[]
[]
[]
[]
[]
[]
[]
[]
[]
[]
[]
[]
[]
[]
[]
[]
[]
[]
[]
[]
[]
[]
[]
[]
[]
[null,null,null,null,null,null,null,null,"Copyright Kaz Technologies 2013 "]

{"sheet":"Bl5","index":9,"n_rows":0,"n_cols":0,"rows_kept":0,"cut":false,"hidden":false,"merged":[]}

{"sheet":"Job List ","index":10,"n_rows":40,"n_cols":11,"rows_kept":40,"cut":false,"hidden":false,"merged":[[8,1,8,9],[2,0,3,10],[4,2,4,4],[4,8,4,10],[6,1,6,9],[7,1,7,9],[20,1,20,9],[9,1,9,9],[10,1,10,9],[11,1,11,9],[12,1,12,9],[13,1,13,9],[14,1,14,9],[15,1,15,9],[16,1,16,9],[17,1,17,9],[18,1,18,9],[19,1,19,9],[32,1,32,9],[21,1,21,9],[22,1,22,9],[23,1,23,9],[24,1,24,9],[25,1,25,9],[26,1,26,9],[27,1,27,9],[28,1,28,9],[29,1,29,9],[30,1,30,9],[31,1,31,9],[33,1,33,9],[34,1,34,9],[35,1,35,9],[36,1,36,9],[37,1,37,9]]}
[]
[]
["JOB LIST SHEET"]
[]
["CHASSIS",null,{"$f":"'Info Sheet'!C18","v":"FSAE-001"},null,null,null,"NEXT EVENT"]
[null,null,null,null,null,null,null,null,null,null,"Done"]
[1]
[{"$f":"A7+1","v":2}]
[{"$f":"A8+1","v":3}]
[4]
[5]
[6]
[7]
[8]
[9]
[10]
[11]
[12]
[13]
[14]
[15]
[16]
[17]
[18]
[19]
[20]
[21]
[22]
[23]
[24]
[25]
[26]
[27]
[28]
[29]
[30]
[31]
[32]
[]
[null,null,null,"Copyright Kaz Technologies 2013 "]